bitfinex/quotes_BTCUSD_20250901
["timestamp","ask_amount","ask_price","bid_price","bid_amount"]
[1756713830574,0.9524206,109800.0,109790.0,4.209e-05]
[1756713830784,1.13456996,109800.0,109790.0,4.209e-05]
[1756713833374,1.24848879,109800.0,109790.0,4.209e-05]
[1756713836527,1.13440996,109800.0,109790.0,0.01604209]
[1756713836731,0.95696996,109800.0,109790.0,0.01604209]
[1756713836905,1.22730997,109800.0,109790.0,0.01604209]
[1756713837994,1.24824879,109800.0,109790.0,0.01604209]
[1756713839941,1.24776879,109800.0,109790.0,0.01604209]
[1756713840601,1.29776879,109800.0,109790.0,0.01604209]
[1756713840844,1.02692537,109790.0,109780.0,24.57699628]
[1756713841070,1.02692537,109790.0,109780.0,24.5770435]
[1756713841071,6.16990538,109790.0,109780.0,24.5770435]
[1756713841295,6.16990538,109790.0,109780.0,24.02878395]
[1756713841682,5.91280478,109790.0,109780.0,23.77407252]
[1756713841923,6.43957514,109790.0,109780.0,23.77407252]
[1756713842129,6.43957514,109790.0,109780.0,23.4459172]
[1756713842345,6.16990538,109790.0,109780.0,23.4459172]
[1756713842528,6.34862538,109790.0,109780.0,23.09044338]
[1756713842768,6.34662538,109790.0,109780.0,22.79036732]
[1756713843198,6.34762538,109790.0,109780.0,22.79836732]
[1756713843426,1.34742538,109790.0,109780.0,22.79836732]
[1756713843642,1.12090538,109790.0,109780.0,22.79836732]
[1756713843868,0.29708478,109790.0,109780.0,22.79836732]
[1756713844080,0.45258596,109790.0,109780.0,22.79836732]
[1756713844289,1.22640656,109790.0,109780.0,22.79836732]
[1756713844500,0.88640656,109790.0,109780.0,22.79836732]
[1756713844733,1.00734538,109790.0,109780.0,22.79836732]
[1756713844945,1.24722538,109790.0,109780.0,22.79836732]
[1756713845399,1.06310539,109790.0,109780.0,22.79836732]
[1756713845608,0.89946539,109790.0,109780.0,22.79836732]
[1756713845823,1.23946539,109790.0,109780.0,22.79836732]
[1756713846033,1.23934539,109790.0,109780.0,22.79836732]
[1756713846298,1.06310539,109790.0,109780.0,22.79836732]
[1756713846516,1.23922539,109790.0,109780.0,22.79836732]
[1756713847139,1.23918539,109790.0,109780.0,22.79836732]
[1756713847351,1.06310539,109790.0,109780.0,22.79836732]
[1756713847561,1.23914539,109790.0,109780.0,22.79836732]
[1756713850554,1.06310539,109790.0,109780.0,22.79836732]
[1756713850775,1.23870539,109790.0,109780.0,22.79836732]
[1756713851948,1.06310539,109790.0,109780.0,22.79836732]
[1756713852139,1.23842539,109790.0,109780.0,22.79836732]
[1756713852711,1.06310539,109790.0,109780.0,22.79836732]
[1756713852876,1.23838539,109790.0,109780.0,22.79836732]
[1756713853877,1.23826539,109790.0,109780.0,22.79836732]
[1756713854422,1.23818539,109790.0,109780.0,22.79836732]
[1756713855355,1.06310539,109790.0,109780.0,22.79836732]
[1756713855753,1.23786539,109790.0,109780.0,22.79836732]
[1756713856887,0.62928479,109790.0,109780.0,22.79836732]
[1756713857061,1.23770539,109790.0,109780.0,22.79836732]
[1756713859332,1.06310539,109790.0,109780.0,22.79836732]
[1756713859522,1.23742539,109790.0,109780.0,22.79836732]
[1756713862679,0.80360479,109790.0,109780.0,22.79836732]
[1756713862888,0.001,109790.0,109780.0,22.79836732]
[1756713863096,0.17492,109790.0,109780.0,22.79836732]
[1756713863300,0.51492,109790.0,109780.0,22.98054986]
[1756713863511,0.17492,109790.0,109780.0,22.98054986]
[1756713863721,0.51492,109790.0,109780.0,22.98054986]
[1756713863904,0.001,109790.0,109780.0,22.98054986]
[1756713864165,0.17492,109790.0,109780.0,22.98054986]
[1756713867426,0.35708595,109790.0,109780.0,22.79836732]
[1756713867642,0.79090655,109790.0,109780.0,22.79836732]
[1756713868253,0.35708595,109790.0,109780.0,22.79836732]
[1756713868483,0.79090655,109790.0,109780.0,22.79836732]
[1756713869221,0.6087406,109790.0,109780.0,22.98054986]
[1756713869423,0.001,109790.0,109780.0,22.98054986]
[1756713869635,0.17396,109790.0,109780.0,22.79836732]
[1756713869840,0.35612595,109790.0,109780.0,22.79836732]
[1756713870048,0.78994655,109790.0,109780.0,22.79836732]
[1756713870252,0.35612595,109790.0,109780.0,22.79836732]
[1756713870467,0.78994655,109790.0,109780.0,22.79836732]
[1756713871516,0.90386538,109790.0,109780.0,22.79836732]
[1756713873056,1.24386538,109790.0,109780.0,22.79836732]
[1756713877312,1.24386538,109790.0,109780.0,22.79809251]
[1756713877526,1.09828038,109790.0,109780.0,22.79809251]
[1756713877952,1.24290538,109790.0,109780.0,22.79809251]
[1756713878372,0.80908478,109790.0,109780.0,22.79809251]
[1756713878558,1.24290538,109790.0,109780.0,22.79809251]
[1756713878865,0.63708478,109790.0,109780.0,22.79809251]
[1756713879073,0.001,109790.0,109780.0,22.98027505]
[1756713879296,0.17288,109790.0,109780.0,22.79809251]
[1756713879500,0.35504595,109790.0,109780.0,22.79809251]
[1756713879704,0.17288,109790.0,109780.0,22.98027505]
[1756713880116,0.35504595,109790.0,109780.0,22.79809251]
[1756713880324,0.001,109790.0,109780.0,22.98027505]
[1756713880538,0.1728,109790.0,109780.0,22.98027505]
[1756713880735,0.001,109790.0,109780.0,23.50707566]
[1756713880950,0.001,109790.0,109780.0,23.87883566]
[1756713883649,0.001,109790.0,109780.0,23.27325506]
[1756713883850,0.001,109790.0,109780.0,23.87855566]
[1756713884056,0.001,109790.0,109780.0,23.44473506]
[1756713884187,0.001,109790.0,109780.0,23.07325506]
[1756713884425,0.4348206,109790.0,109780.0,22.79809251]
[1756713884824,0.78850655,109790.0,109780.0,22.79809251]
[1756713885432,0.35468595,109790.0,109780.0,22.79809251]
[1756713885665,0.78850655,109790.0,109780.0,22.79809251]
[1756713886032,0.78850655,109790.0,109780.0,22.98027505]
[1756713886033,0.17252,109790.0,109780.0,22.98027505]
[1756713886242,0.001,109790.0,109780.0,23.67875566]
[1756713886451,0.001,109790.0,109780.0,23.24493506]
[1756713888047,0.001,109790.0,109780.0,23.67875566]
[1756713888481,0.001,109790.0,109780.0,24.02875566]
[1756713888686,0.001,109790.0,109780.0,23.87875566]
[1756713889313,0.001,109790.0,109780.0,23.44493506]
[1756713889491,0.001,109790.0,109780.0,23.87875566]
[1756713890082,0.001,109790.0,109780.0,23.59493506]
[1756713890316,0.001,109790.0,109780.0,24.02875566]
[1756713890649,0.001,109790.0,109780.0,23.59493506]
[1756713890858,0.001,109790.0,109780.0,24.02875566]
[1756713892085,0.001,109790.0,109780.0,23.27325506]
[1756713892289,0.24144,109820.0,109800.0,0.18213338]
[1756713892290,0.46894868,109820.0,109800.0,0.18213338]
[1756713894564,0.18213277,109810.0,109800.0,0.04033785]
[1756713894816,0.61595337,109810.0,109800.0,0.003]
[1756713895916,0.21824455,109820.0,109800.0,0.18514936]
[1756713896135,0.65106515,109820.0,109800.0,0.18214936]
[1756713896348,0.65106515,109820.0,109790.0,0.1821652]
[1756713896349,0.61595337,109810.0,109790.0,0.1821652]
[1756713896583,0.18313277,109810.0,109800.0,0.006]
[1756713896791,0.61695337,109810.0,109800.0,0.006]
[1756713897223,0.61595337,109810.0,109790.0,0.1821652]
[1756713897643,0.18313277,109810.0,109790.0,0.1881652]
[1756713897879,0.61595337,109810.0,109790.0,0.1821652]
[1756713898090,0.61595337,109810.0,109800.0,0.007]
[1756713898314,0.78835337,109810.0,109800.0,0.007]
[1756713899358,0.78735337,109810.0,109790.0,0.18216443]
[1756713899804,0.78835337,109810.0,109790.0,0.18916443]
[1756713900013,0.18213277,109810.0,109790.0,0.18216443]
[1756713900226,0.02314078,109830.0,109820.0,0.18211619]
[1756713900448,0.07,109840.0,109820.0,0.20032781]
[1756713900626,0.85730384,109840.0,109820.0,0.01821162]
[1756713900861,0.42348324,109840.0,109820.0,0.20032605]
[1756713901065,0.18206769,109850.0,109830.0,0.1820996]
[1756713901267,0.1714,109840.0,109830.0,0.24769075]
[1756713902841,0.0004776,109850.0,109830.0,0.24769075]
[1756713903056,0.78876542,109850.0,109830.0,0.24969075]
[1756713903261,0.6066982,109850.0,109840.0,0.18208302]
[1756713903502,0.1718776,109850.0,109840.0,0.18208302]
[1756713903709,0.1718776,109850.0,109840.0,0.20435467]
[1756713903922,0.0004776,109850.0,109840.0,0.20435467]
[1756713904356,0.0014776,109850.0,109840.0,0.20435467]
[1756713905443,0.0014776,109850.0,109840.0,0.49733468]
[1756713905898,0.0004776,109850.0,109840.0,0.49733468]
[1756713906790,0.0014776,109850.0,109840.0,0.49933468]
[1756713907648,0.0014776,109850.0,109840.0,0.67069468]
[1756713909231,0.0014776,109850.0,109840.0,1.25451528]
[1756713910481,0.0014776,109850.0,109840.0,0.44933468]
[1756713910687,0.0014776,109850.0,109840.0,0.62069468]
[1756713911115,0.0014776,109850.0,109840.0,0.29933468]
[1756713911316,0.0014776,109850.0,109840.0,0.47069468]
[1756713911529,0.0014776,109850.0,109840.0,0.29933468]
[1756713911946,0.0014776,109850.0,109840.0,0.47069468]
[1756713912365,0.0014776,109850.0,109840.0,0.90451528]
[1756713912574,0.0014776,109850.0,109840.0,0.62069468]
[1756713913411,0.0014776,109850.0,109840.0,1.05451528]
[1756713913620,0.0004776,109850.0,109840.0,1.05251528]
[1756713913791,0.0014776,109850.0,109840.0,1.05951528]
[1756713914214,0.0014776,109850.0,109840.0,1.05251528]
[1756713915207,0.0014776,109850.0,109840.0,0.61869468]
[1756713915410,0.0024776,109850.0,109840.0,1.06151528]
[1756713915807,0.0004776,109850.0,109840.0,0.44733468]
[1756713916185,0.0014776,109850.0,109840.0,0.47773468]
[1756713919642,0.0014776,109850.0,109840.0,0.30633468]
[1756713919858,0.00100077,109850.0,109840.0,0.91151528]
[1756713920271,0.00100077,109850.0,109840.0,0.62769468]
[1756713920477,0.00100077,109850.0,109840.0,1.06151528]
[1756713921602,0.77408882,109890.0,109870.0,0.18202069]
[1756713921821,0.34026822,109890.0,109870.0,0.21938263]
[1756713922051,0.61583734,109880.0,109870.0,0.03736194]
[1756713922267,0.61583734,109880.0,109870.0,0.21939525]
[1756713922543,0.61583734,109880.0,109870.0,0.03736194]
[1756713922772,0.61583734,109880.0,109870.0,4.722e-05]
[1756713923212,0.18201674,109880.0,109870.0,0.18608053]
[1756713923415,0.4338206,109880.0,109870.0,0.18608053]
[1756713923622,0.6051406,109880.0,109870.0,0.18608053]
[1756713923833,0.78715734,109880.0,109870.0,0.04086023]
[1756713924062,0.78715734,109880.0,109870.0,0.03686023]
[1756713924275,1.24107617,109880.0,109870.0,4.722e-05]
[1756713925537,1.06975617,109880.0,109870.0,4.722e-05]
[1756713925745,1.24207617,109880.0,109870.0,0.00704722]
[1756713927597,1.2827553,109880.0,109870.0,0.00704722]
[1756713928073,1.1114353,109880.0,109870.0,0.00704722]
[1756713928284,1.2827553,109880.0,109870.0,0.00704722]
[1756713933174,1.1114353,109880.0,109870.0,0.00704722]
[1756713933393,1.2827553,109880.0,109870.0,0.00704722]
[1756713933601,1.2827153,109880.0,109870.0,0.00704722]
[1756713933858,0.8488947,109880.0,109870.0,0.00704722]
[1756713934080,1.09049648,109880.0,109870.0,0.00704722]
[1756713934295,1.26177648,109880.0,109870.0,0.00704722]
[1756713934936,1.2827153,109880.0,109870.0,0.00704722]
[1756713935566,1.1114353,109880.0,109870.0,0.00704722]
[1756713935773,1.2827153,109880.0,109870.0,0.00704722]
[1756713936455,0.6776147,109880.0,109870.0,0.00704722]
[1756713936660,1.2827153,109880.0,109870.0,0.00704722]
[1756713937290,1.24203617,109880.0,109870.0,0.00704722]
[1756713938385,1.07075617,109880.0,109870.0,0.00704722]
[1756713938597,1.24203617,109880.0,109870.0,0.00704722]
[1756713941160,1.28212099,109880.0,109870.0,0.00704722]
[1756713943127,1.28212099,109880.0,109870.0,1e-08]
[1756713943349,1.28212099,109880.0,109790.0,0.0721143]
[1756713943350,0.18214936,109800.0,109790.0,0.0721143]
[1756713943581,0.78976996,109800.0,109790.0,0.0721143]
[1756713943800,0.78976996,109800.0,109790.0,0.0725919]
[1756713944011,0.78976996,109800.0,109790.0,0.0883404]
[1756713944269,1.15019423,109800.0,109790.0,0.0004776]
[1756713944736,1.26411306,109800.0,109790.0,0.0004776]
[1756713944952,0.52216595,109790.0,109780.0,22.79004529]
[1756713945169,1.04688537,109790.0,109780.0,22.35576067]
[1756713945388,2.63427694,109790.0,109780.0,21.34270964]
[1756713945632,2.63427694,109790.0,109780.0,21.19793389]
[1756713945633,7.68262896,109790.0,109780.0,21.19793389]
[1756713945868,7.68427694,109790.0,109780.0,20.70693461]
[1756713946118,7.78922528,109790.0,109780.0,20.48733157]
[1756713946358,7.59132718,109790.0,109780.0,19.8471679]
[1756713946586,5.8816987,109790.0,109780.0,19.59208987]
[1756713946837,7.6396792,109790.0,109780.0,19.38490217]
[1756713947062,7.83690671,109790.0,109780.0,19.10189545]
[1756713947302,7.86047989,109790.0,109780.0,18.36886466]
[1756713947534,7.86047989,109790.0,109780.0,17.60791771]
[1756713947782,7.87447989,109790.0,109780.0,15.9697825]
[1756713948020,7.87446114,109790.0,109780.0,13.53339048]
[1756713948246,7.75489842,109790.0,109780.0,11.98202834]
[1756713948459,7.73220032,109790.0,109780.0,11.75016402]
[1756713948698,7.91320032,109790.0,109780.0,11.45963669]
[1756713948928,7.6365864,109790.0,109780.0,11.33117847]
[1756713949174,7.86393322,109790.0,109780.0,11.18998076]
[1756713949438,7.86393322,109790.0,109780.0,10.67478213]
[1756713949669,7.88722343,109790.0,109780.0,10.67478213]
[1756713949898,7.87025467,109790.0,109780.0,10.43406658]
[1756713950125,6.79067188,109790.0,109780.0,10.24999049]
[1756713950361,7.53265838,109790.0,109780.0,9.48353172]
[1756713950583,7.53265838,109790.0,109780.0,9.38355388]
[1756713950584,7.91662334,109790.0,109780.0,9.38355388]
[1756713950814,7.66604446,109790.0,109780.0,9.2636038]
[1756713951044,6.59121833,109790.0,109780.0,9.14579489]
[1756713951313,6.59081842,109790.0,109780.0,9.14579489]
[1756713951547,5.9985996,109790.0,109780.0,9.14579489]
[1756713951776,6.21159696,109790.0,109780.0,9.14579489]
[1756713952078,6.54525412,109790.0,109780.0,9.14579489]
[1756713952313,6.19679385,109790.0,109780.0,9.14579489]
[1756713952564,6.53179972,109790.0,109780.0,9.14579489]
[1756713952795,6.54025056,109790.0,109780.0,9.14579489]
[1756713953036,6.01827903,109790.0,109780.0,9.14579489]
[1756713953266,6.55273854,109790.0,109780.0,9.14579489]
[1756713953754,6.03145854,109790.0,109780.0,9.14579489]
[1756713953997,6.21237854,109790.0,109780.0,9.14579489]
[1756713954216,8.15575707,109790.0,109780.0,8.48782332]
[1756713954434,8.15575707,109790.0,109780.0,8.02959346]
[1756713954435,8.23985035,109790.0,109780.0,8.02959346]
[1756713954636,8.23985035,109790.0,109780.0,7.56983155]
[1756713954842,8.28258704,109790.0,109780.0,7.32810529]
[1756713955076,6.144749,109790.0,109780.0,7.32784014]
[1756713955266,8.26789959,109790.0,109780.0,6.91312825]
[1756713955483,8.28732934,109790.0,109780.0,6.82815211]
[1756713955694,8.26167542,109790.0,109780.0,6.73767843]
[1756713955905,6.61009689,109790.0,109780.0,6.59418374]
[1756713956115,6.61741693,109790.0,109780.0,6.51489257]
[1756713956326,6.60892915,109790.0,109780.0,6.3094885]
[1756713956531,6.48803033,109790.0,109780.0,6.3094885]
[1756713956752,6.30355615,109790.0,109780.0,6.3094885]
[1756713956956,6.63627615,109790.0,109780.0,6.3094885]
[1756713957173,6.38261733,109790.0,109780.0,6.3094885]
[1756713957381,6.56525733,109790.0,109780.0,5.81926411]
[1756713957599,6.58619615,109790.0,109780.0,5.68624279]
[1756713958236,6.58619615,109790.0,109780.0,5.03078144]
[1756713958444,6.61933032,109790.0,109780.0,4.92385295]
[1756713958660,6.63617056,109790.0,109780.0,4.65641819]
[1756713958923,6.63617056,109790.0,109780.0,4.56468352]
[1756713959137,6.45353056,109790.0,109780.0,4.46374238]
[1756713959350,6.63581056,109790.0,109780.0,4.06566467]
[1756713959616,6.58581056,109790.0,109780.0,4.06566467]
[1756713959850,6.63581056,109790.0,109780.0,4.06566467]
[1756713960324,5.86907105,109790.0,109780.0,3.52697296]
[1756713960534,6.45353056,109790.0,109780.0,3.52697296]
[1756713960742,6.53621056,109790.0,109780.0,3.52697296]
[1756713961780,5.42907105,109790.0,109780.0,3.52697296]
[1756713961989,6.48141153,109790.0,109780.0,3.52697296]
[1756713962204,6.46047271,109790.0,109780.0,3.52697296]
[1756713962654,6.46047271,109790.0,109780.0,3.07515501]
[1756713962850,6.50694545,109790.0,109780.0,3.07515501]
[1756713963057,6.48129153,109790.0,109780.0,3.07515501]
[1756713964336,6.48129153,109790.0,109780.0,2.55306484]
[1756713964337,6.53129153,109790.0,109780.0,2.55306484]
[1756713964562,6.48129153,109790.0,109780.0,2.55306484]
[1756713964773,6.53129153,109790.0,109780.0,2.55306484]
[1756713965236,6.53129153,109790.0,109780.0,2.01049858]
[1756713965453,6.34877153,109790.0,109780.0,2.01049858]
[1756713965678,6.48125153,109790.0,109780.0,2.01049858]
[1756713966150,6.48125153,109790.0,109780.0,1.41885031]
[1756713966151,6.53125153,109790.0,109780.0,1.41885031]
[1756713966361,6.49877153,109790.0,109780.0,1.41885031]
[1756713966584,6.68117153,109790.0,109780.0,1.12810235]
[1756713966801,6.68117153,109790.0,109780.0,0.86633]
[1756713967018,6.68117153,109790.0,109780.0,0.79047539]
[1756713967264,6.68959772,109790.0,109780.0,0.5991754]
[1756713967694,6.68959772,109790.0,109780.0,0.59891191]
[1756713967695,6.50719772,109790.0,109780.0,0.59891191]
[1756713967904,6.68937094,109790.0,109780.0,0.59891191]
[1756713968113,6.48090439,109790.0,109780.0,0.59891191]
[1756713968321,6.4893358,109790.0,109780.0,0.59864861]
[1756713968563,6.29878439,109790.0,109780.0,0.59864861]
[1756713968787,6.11984557,109790.0,109780.0,0.59864861]
[1756713968997,5.82099247,109790.0,109780.0,0.59864861]
[1756713969207,5.46845296,109790.0,109780.0,0.59864861]
[1756713969860,5.80845296,109790.0,109780.0,0.59864861]
[1756713970070,5.62653296,109790.0,109780.0,0.59864861]
[1756713970305,5.80821296,109790.0,109780.0,0.59864861]
[1756713970522,6.18193129,109790.0,109780.0,0.59864861]
[1756713970738,0.20444701,109790.0,109780.0,0.59864861]
[1756713970943,0.17706001,109790.0,109780.0,0.59864861]
[1756713971374,0.35878001,109790.0,109780.0,0.59864861]
[1756713971597,0.29328043,109790.0,109780.0,0.59864861]
[1756713971814,0.15494157,109790.0,109780.0,1.13310812]
[1756713972033,0.06196156,109790.0,109780.0,1.40824042]
[1756713972504,0.24376156,109790.0,109780.0,1.22605788]
[1756713973871,0.24376156,109790.0,109780.0,1.41124042]
[1756713974099,0.20948696,109820.0,109780.0,1.41124042]
[1756713974100,0.02737,109820.0,109780.0,1.41124042]
[1756713974281,0.13397201,109820.0,109810.0,0.71659228]
[1756713974536,0.27885,109820.0,109810.0,0.80646644]
[1756713974743,0.25148,109820.0,109810.0,0.62433367]
[1756713975187,0.25148,109820.0,109790.0,0.28424723]
[1756713975395,0.25148,109820.0,109810.0,0.53445951]
[1756713975620,0.43359619,109820.0,109810.0,0.003]
[1756713976495,0.5265762,109820.0,109810.0,0.003]
[1756713976705,0.5265762,109820.0,109800.0,0.53445951]
[1756713976918,0.5265762,109820.0,109810.0,0.53445951]
[1756713976919,0.07004,109820.0,109810.0,0.53445951]
[1756713977131,0.07104,109820.0,109810.0,0.73918491]
[1756713977341,0.25228,109820.0,109810.0,0.83216492]
[1756713977763,0.25228,109820.0,109810.0,0.65003215]
[1756713977981,0.25128,109820.0,109810.0,0.1095689]
[1756713978224,0.25228,109820.0,109810.0,0.56304878]
[1756713978643,0.25128,109820.0,109810.0,0.01658927]
[1756713978897,0.43339619,109820.0,109810.0,0.55104741]
[1756713979107,0.25128,109820.0,109810.0,0.5510485]
[1756713979325,0.43339619,109820.0,109810.0,0.01658899]
[1756713979553,0.5263762,109820.0,109810.0,0.01658899]
[1756713979769,0.34426001,109820.0,109810.0,0.5510485]
[1756713979980,0.34418001,109820.0,109810.0,0.60615335]
[1756713980198,0.5272962,109820.0,109810.0,0.02558899]
[1756713980401,0.5262962,109820.0,109810.0,0.01658899]
[1756713980534,0.5262962,109820.0,109810.0,0.5510485]
[1756713981305,0.5272962,109820.0,109810.0,0.02258899]
[1756713981511,0.5272962,109820.0,109810.0,0.5570485]
[1756713981930,0.5272962,109820.0,109810.0,0.02258899]
[1756713982133,5.8672962,109820.0,109810.0,0.02258899]
[1756713982338,5.90781166,109820.0,109810.0,0.02258899]
[1756713982745,5.93229114,109820.0,109810.0,0.02258899]
[1756713982963,5.88823502,109820.0,109810.0,0.02258899]
[1756713983181,0.88863502,109820.0,109810.0,0.02258899]
[1756713983593,0.88763502,109820.0,109810.0,0.01658899]
[1756713983800,0.34,109810.0,109790.0,0.0721143]
[1756713984004,0.18144,109800.0,109790.0,0.13919059]
[1756713984209,0.18136,109800.0,109790.0,0.13919059]
[1756713984422,0.61511385,109810.0,109790.0,0.13919059]
[1756713984628,0.18124,109800.0,109790.0,0.13919059]
[1756713984841,0.43298001,109810.0,109790.0,0.13919059]
[1756713984842,0.61511337,109810.0,109790.0,0.13919059]
[1756713985077,0.18216595,109790.0,109780.0,0.59864861]
[1756713985265,0.68518596,109790.0,109780.0,0.59864861]
[1756713985477,0.87326596,109790.0,109780.0,0.59864861]
[1756713985654,0.87326596,109790.0,109780.0,1.13310812]
[1756713985897,0.69110001,109790.0,109780.0,1.13310812]
[1756713986106,0.25812,109790.0,109780.0,1.13310812]
[1756713986320,0.07004,109790.0,109780.0,1.13310812]
[1756713986530,0.25796,109790.0,109780.0,1.13310812]
[1756713986745,0.07004,109810.0,109780.0,1.41734954]
[1756713986953,0.07004,109810.0,109800.0,0.53445951]
[1756713987163,0.25804,109810.0,109800.0,0.53445951]
[1756713987372,0.25804,109810.0,109790.0,0.09298001]
[1756713987577,0.25804,109810.0,109800.0,0.53445951]
[1756713987791,0.25804,109810.0,109800.0,0.59720346]
[1756713988005,0.25804,109810.0,109780.0,0.69159837]
[1756713988210,0.44017287,109810.0,109790.0,0.53445951]
[1756713988413,0.25904,109810.0,109800.0,0.53845951]
[1756713988615,0.25904,109810.0,109800.0,0.004]
[1756713989024,0.25904,109810.0,109800.0,0.53845951]
[1756713989235,0.25904,109810.0,109800.0,0.59253317]
[1756713989847,0.25804,109810.0,109800.0,0.58853317]
[1756713990255,0.25904,109810.0,109800.0,0.58853317]
[1756713990463,0.25804,109810.0,109800.0,0.58853317]
[1756713990880,0.25804,109810.0,109800.0,0.003]
[1756713990881,0.25904,109810.0,109800.0,0.003]
[1756713991058,0.25804,109810.0,109800.0,0.53445951]
[1756713991493,0.25904,109810.0,109800.0,0.53745951]
[1756713991707,0.25804,109810.0,109800.0,0.53445951]
[1756713991922,0.25804,109810.0,109800.0,0.58790546]
[1756713992543,0.25804,109810.0,109800.0,0.05344595]
[1756713992741,0.25804,109810.0,109800.0,0.53445951]
[1756713993165,0.07104,109810.0,109800.0,0.72260887]
[1756713993377,0.25892,109810.0,109800.0,0.81558888]
[1756713993784,0.25792,109810.0,109800.0,0.62743952]
[1756713993992,0.25792,109810.0,109800.0,0.80958888]
[1756713994196,0.25892,109810.0,109800.0,0.90761988]
[1756713994397,0.25892,109810.0,109800.0,0.90161988]
[1756713994608,0.10208664,109810.0,109780.0,0.59864861]
[1756713994814,0.52215051,109800.0,109780.0,0.59864861]
[1756713995028,0.18752,109790.0,109780.0,0.59864861]
[1756713995206,0.18752,109790.0,109780.0,1.13218936]
[1756713995670,0.18752,109790.0,109780.0,0.59864861]
[1756713995671,0.82360478,109790.0,109780.0,0.59864861]
[1756713995888,0.80266596,109790.0,109780.0,0.65851347]
[1756713996096,0.80246596,109790.0,109780.0,1.05567582]
[1756713996308,0.80246596,109790.0,109780.0,0.99581096]
[1756713996519,0.61514596,109790.0,109780.0,0.99581096]
[1756713996741,0.80238596,109790.0,109780.0,0.99581096]
[1756713996969,0.80238596,109790.0,109780.0,0.99881096]
[1756713996970,0.18708,109790.0,109780.0,0.99881096]
[1756713997193,0.18708,109790.0,109780.0,0.60164861]
[1756713997194,6.48916713,109790.0,109780.0,0.60164861]
[1756713997406,6.43916713,109790.0,109780.0,0.59864861]
[1756713997613,6.44016713,109790.0,109780.0,0.60464861]
[1756713998108,6.44044286,109790.0,109780.0,0.60464861]
[1756713998751,5.85592478,109790.0,109780.0,0.60464861]
[1756713999005,6.04292478,109790.0,109780.0,0.60464861]
[1756713999238,6.44036286,109790.0,109780.0,0.60464861]
[1756713999453,6.57626712,109790.0,109780.0,0.59864861]
[1756713999862,6.57626712,109790.0,109780.0,0.59964861]
[1756714000297,1.04136478,109790.0,109780.0,0.59964861]
[1756714000967,0.49398596,109790.0,109780.0,0.65961347]
[1756714001179,1.02030596,109790.0,109780.0,0.65961347]
[1756714001599,1.02030596,109790.0,109780.0,0.59964861]
[1756714002673,1.57558712,109790.0,109780.0,0.59964861]
[1756714002881,1.04124478,109790.0,109780.0,0.59964861]
[1756714003755,1.57558712,109790.0,109780.0,0.59964861]
[1756714004493,1.57558712,109790.0,109780.0,0.39964861]
[1756714004494,1.04124478,109790.0,109780.0,0.39964861]
[1756714005752,1.06862478,109790.0,109780.0,0.39964861]
[1756714006178,1.60296712,109790.0,109780.0,0.39964861]
[1756714007236,1.06862478,109790.0,109780.0,0.39964861]
[1756714007445,1.60296712,109790.0,109780.0,0.39964861]
[1756714007656,0.88230478,109790.0,109780.0,0.43961347]
[1756714007857,1.06850478,109790.0,109780.0,0.39964861]
[1756714008688,0.88230478,109790.0,109780.0,0.39964861]
[1756714008893,1.06806478,109790.0,109780.0,0.39964861]
[1756714009097,0.18215047,109800.0,109780.0,1.15613835]
[1756714009098,0.07004,109800.0,109780.0,1.15613835]
[1756714009313,0.18603058,109790.0,109780.0,0.97395581]
[1756714009547,0.18603058,109790.0,109780.0,1.24911836]
[1756714010155,0.18591058,109790.0,109780.0,1.24811836]
[1756714010356,0.00035058,109790.0,109780.0,1.77767836]
[1756714010803,0.00035058,109790.0,109780.0,1.77367836]
[1756714010998,0.00135058,109790.0,109780.0,1.78167836]
[1756714011419,0.00035058,109790.0,109780.0,1.58811836]
[1756714011636,0.00135058,109790.0,109780.0,1.59811836]
[1756714012066,0.00135058,109790.0,109780.0,1.78327836]
[1756714017126,0.00135058,109790.0,109780.0,1.82442939]
[1756714017331,0.00135058,109790.0,109780.0,1.82346939]
[1756714019965,0.00135058,109790.0,109780.0,1.63926939]
[1756714020168,0.00135058,109790.0,109780.0,1.63875196]
[1756714021243,0.00135058,109790.0,109780.0,1.82191196]
[1756714021453,0.00135058,109790.0,109780.0,0.72377602]
[1756714022071,0.00135058,109790.0,109780.0,1.12086078]
[1756714023133,0.00135058,109790.0,109780.0,1.30358078]
[1756714023778,0.00135058,109790.0,109780.0,1.64358078]
[1756714023995,0.00135058,109790.0,109780.0,1.84358078]
[1756714024243,0.00135058,109790.0,109780.0,1.9845196]
[1756714024455,0.00135058,109790.0,109780.0,2.2345196]
[1756714024689,0.0721143,109830.0,109820.0,0.18211619]
[1756714024901,0.0721143,109830.0,109820.0,0.89076586]
[1756714025330,0.0721143,109830.0,109820.0,0.70860586]
[1756714025577,0.0721143,109830.0,109820.0,0.89060586]
[1756714026007,0.0721143,109830.0,109820.0,0.70865322]
[1756714026432,0.00035384,109840.0,109830.0,0.1820996]
[1756714026644,0.00035384,109840.0,109830.0,0.76123965]
[1756714027335,0.0721143,109850.0,109830.0,0.76123965]
[1756714027752,0.003,109840.0,109830.0,0.76123965]
[1756714028208,0.003,109840.0,109830.0,0.57914005]
[1756714028433,0.0721143,109850.0,109830.0,0.76123965]
[1756714029281,0.25223567,109860.0,109830.0,0.76123965]
[1756714029557,0.83137115,109860.0,109830.0,0.18205529]
[1756714029766,0.2841499,109850.0,109820.0,0.03647226]
[1756714029969,0.18156,109840.0,109820.0,0.03647226]
[1756714030170,0.18156,109840.0,109820.0,0.21858819]
[1756714030496,0.18152,109840.0,109820.0,0.21858819]
[1756714030894,0.18152,109840.0,109820.0,0.03747226]
[1756714031117,0.18152,109840.0,109820.0,0.03647226]
[1756714031525,0.07,109830.0,109820.0,0.00204736]
[1756714031725,0.46708476,109830.0,109820.0,0.00204736]
[1756714031957,0.07,109850.0,109820.0,0.18416323]
[1756714032214,0.18132,109840.0,109820.0,0.18416233]
[1756714032419,0.18132,109840.0,109820.0,0.58124709]
[1756714032596,0.18132,109840.0,109820.0,0.65849285]
[1756714032839,0.18132,109840.0,109820.0,0.07929312]
[1756714033042,0.18132,109840.0,109820.0,0.18416315]
[1756714033481,0.18132,109840.0,109820.0,0.18216315]
[1756714034114,0.18132,109840.0,109820.0,0.1821629]
[1756714034535,0.07,109850.0,109820.0,0.18416337]
[1756714034732,0.18116,109830.0,109820.0,0.18416355]
[1756714034935,0.18116,109830.0,109820.0,0.26140943]
[1756714035353,0.56006477,109850.0,109820.0,0.27051523]
[1756714035562,0.18136,109830.0,109820.0,0.27051523]
[1756714035761,0.56006477,109850.0,109820.0,0.27051523]
[1756714035990,0.18112,109840.0,109830.0,0.18437491]
[1756714036209,0.41,109850.0,109830.0,0.08519749]
[1756714036418,0.07,109850.0,109840.0,0.18208302]
[1756714036625,0.25104,109850.0,109840.0,0.18208302]
[1756714036830,0.25104,109850.0,109840.0,0.57916778]
[1756714037059,0.25104,109850.0,109840.0,0.18208302]
[1756714037270,0.25104,109850.0,109840.0,0.62410569]